bitfinex/quotes_BTCUSD_20240617
["timestamp","ask_amount","ask_price","bid_price","bid_amount"]
[1718593553633,0.29696606,66386.0,66385.0,0.02641243]
[1718593554453,0.59823406,66386.0,66385.0,0.02241243]
[1718593554883,0.59823406,66386.0,66385.0,0.04371837]
[1718593555126,0.14633206,66386.0,66385.0,0.04371837]
[1718593555518,0.29696606,66386.0,66385.0,0.04371837]
[1718593555844,0.29696606,66386.0,66385.0,0.03971837]
[1718593556260,0.29696606,66386.0,66385.0,0.04371837]
[1718593556454,0.29786774,66386.0,66385.0,0.02641243]
[1718593556705,0.29786774,66386.0,66385.0,0.008]
[1718593556706,1.20167174,66386.0,66385.0,0.008]
[1718593557658,1.20167174,66386.0,66385.0,0.004]
[1718593558082,0.145,66377.0,66374.0,0.15066]
[1718593558290,0.145,66377.0,66376.0,0.63078779]
[1718593558531,0.14899254,66377.0,66376.0,0.63078779]
[1718593559323,0.14899254,66377.0,66376.0,0.6618172]
[1718593559625,0.14899254,66377.0,66376.0,0.78684204]
[1718593560025,0.14899254,66377.0,66376.0,0.6618172]
[1718593560227,0.14989422,66377.0,66376.0,0.78684211]
[1718593560451,0.14899254,66377.0,66376.0,0.79984211]
[1718593560648,0.14899254,66377.0,66376.0,0.32114211]
[1718593562841,0.14989422,66377.0,66376.0,0.16905432]
[1718593563051,1.25487522,66377.0,66376.0,0.026]
[1718593563265,0.95356622,66377.0,66376.0,0.026]
[1718593564333,0.451983,66374.0,66373.0,0.000935]
[1718593564539,0.590983,66374.0,66373.0,0.000935]
[1718593564745,0.89718918,66374.0,66373.0,0.000935]
[1718593565170,0.94758918,66374.0,66373.0,0.000935]
[1718593565424,0.95758918,66374.0,66373.0,0.000935]
[1718593566839,0.95758918,66374.0,66373.0,0.004935]
[1718593567036,0.94758918,66374.0,66373.0,0.004935]
[1718593568453,0.94758918,66374.0,66373.0,0.009935]
[1718593568678,0.95758918,66374.0,66373.0,0.009935]
[1718593568887,0.95758918,66374.0,66373.0,0.004935]
[1718593569258,0.95758918,66374.0,66373.0,0.008935]
[1718593570190,0.89718918,66374.0,66373.0,0.008935]
[1718593573397,1.19851118,66374.0,66373.0,0.008935]
[1718593573630,0.89718918,66374.0,66373.0,0.008935]
[1718593574230,0.89718918,66374.0,66373.0,0.00857461]
[1718593575081,1.19851118,66374.0,66373.0,0.00857461]
[1718593576470,1.20851118,66374.0,66373.0,0.00857461]
[1718593577356,1.20955918,66374.0,66373.0,0.00857461]
[1718593577785,1.19955918,66374.0,66373.0,0.00857461]
[1718593578150,0.89823718,66374.0,66373.0,0.00857461]
[1718593578959,1.19955918,66374.0,66373.0,0.00857461]
[1718593580012,0.89823718,66374.0,66373.0,0.00857461]
[1718593585425,1.19955918,66374.0,66373.0,0.00857461]
[1718593585963,1.20955918,66374.0,66373.0,0.00857461]
[1718593586484,1.19955918,66374.0,66373.0,0.00857461]
[1718593586693,1.20955918,66374.0,66373.0,0.00857461]
[1718593589355,1.19955918,66374.0,66373.0,0.00857461]
[1718593590570,0.89823718,66374.0,66373.0,0.00857461]
[1718593591182,1.19955918,66374.0,66373.0,0.00857461]
[1718593595655,1.65381897,66374.0,66373.0,0.00857461]
[1718593595855,1.35249697,66374.0,66373.0,0.00857461]
[1718593596069,1.36249697,66374.0,66373.0,0.00857461]
[1718593596335,1.41289697,66374.0,66373.0,0.00857461]
[1718593596608,1.26080918,66374.0,66373.0,0.00857461]
[1718593597031,1.26080918,66374.0,66373.0,0.00457461]
[1718593597451,1.26180918,66374.0,66373.0,0.00457461]
[1718593597844,1.26180918,66374.0,66373.0,0.00057461]
[1718593598085,1.2724698,66374.0,66373.0,0.00057461]
[1718593598292,1.33498335,66374.0,66373.0,0.00057461]
[1718593598937,1.33598335,66374.0,66373.0,0.00057461]
[1718593599147,1.33498335,66374.0,66373.0,0.00057461]
[1718593599773,1.33598335,66374.0,66373.0,0.0001336]
[1718593600704,1.33599504,66374.0,66373.0,0.0001336]
[1718593603373,1.48808283,66374.0,66373.0,0.0001336]
[1718593606529,2.09072683,66374.0,66373.0,0.0001336]
[1718593606738,1.78940483,66374.0,66373.0,0.0001336]
[1718593606957,1.88940483,66374.0,66373.0,0.0001336]
[1718593607611,1.78940483,66374.0,66373.0,0.0001336]
[1718593609908,0.83527304,66374.0,66373.0,0.0001336]
[1718593610110,0.76208718,66374.0,66373.0,0.0001336]
[1718593611317,1.06340918,66374.0,66373.0,0.0001336]
[1718593614306,0.0078805,66374.0,66373.0,0.50028439]
[1718593614464,0.0078805,66374.0,66373.0,0.9366526]
[1718593614666,0.003898,66374.0,66373.0,0.85391431]
[1718593614933,0.003898,66374.0,66373.0,0.8764832]
[1718593615242,0.003898,66374.0,66373.0,1.4791372]
[1718593615446,0.003898,66374.0,66373.0,1.69018863]
[1718593615659,0.002898,66374.0,66373.0,1.86318863]
[1718593615880,0.002898,66374.0,66373.0,2.07138647]
[1718593616096,0.002898,66374.0,66373.0,2.37262678]
[1718593616303,0.001898,66374.0,66373.0,1.97718863]
[1718593616476,0.001898,66374.0,66373.0,1.87718863]
[1718593616900,0.001898,66374.0,66373.0,1.97718863]
[1718593617489,0.001898,66374.0,66373.0,1.89118863]
[1718593618261,0.001898,66374.0,66373.0,1.8024701]
[1718593618461,0.001898,66374.0,66373.0,1.8528701]
[1718593618681,0.001898,66374.0,66373.0,1.85284131]
[1718593619165,0.001898,66374.0,66373.0,1.74027781]
[1718593619575,0.001898,66374.0,66373.0,1.85284131]
[1718593619760,0.001898,66374.0,66373.0,1.74027781]
[1718593620382,0.001898,66374.0,66373.0,1.85284131]
[1718593620587,0.001898,66374.0,66373.0,1.02722381]
[1718593620788,0.001898,66374.0,66373.0,1.07762381]
[1718593620994,0.001898,66374.0,66373.0,1.37895081]
[1718593621354,0.001898,66374.0,66373.0,1.69027781]
[1718593621557,0.001898,66374.0,66373.0,1.90985018]
[1718593621934,0.001898,66374.0,66373.0,1.5410386]
[1718593622145,0.001898,66374.0,66373.0,1.4806386]
[1718593622366,0.001898,66374.0,66373.0,0.51970158]
[1718593622576,0.001898,66374.0,66373.0,0.60289681]
[1718593622776,0.001898,66374.0,66373.0,0.47788439]
[1718593622983,0.001898,66374.0,66373.0,0.52828439]
[1718593623192,0.001898,66374.0,66373.0,0.83961139]
[1718593623403,0.001898,66374.0,66373.0,1.72240263]
[1718593623634,0.001898,66374.0,66373.0,1.70840263]
[1718593623859,0.001898,66374.0,66373.0,1.7758704]
[1718593624069,0.001898,66374.0,66373.0,1.7898704]
[1718593624272,0.001898,66374.0,66373.0,1.72240263]
[1718593624479,0.001898,66374.0,66373.0,1.76736678]
[1718593625122,0.001898,66374.0,66373.0,1.75336678]
[1718593625352,0.001898,66374.0,66373.0,1.42107563]
[1718593625557,0.001898,66374.0,66373.0,0.91323651]
[1718593625731,0.001898,66374.0,66373.0,0.94963651]
[1718593625938,0.001898,66374.0,66373.0,0.96363651]
[1718593626155,0.001898,66374.0,66373.0,0.97763651]
[1718593626358,0.001898,66374.0,66373.0,0.78821139]
[1718593626600,0.001898,66374.0,66373.0,0.96363324]
[1718593627279,0.001898,66374.0,66373.0,0.97763324]
[1718593627516,0.001898,66374.0,66373.0,0.85261139]
[1718593628121,0.001898,66374.0,66373.0,0.83861139]
[1718593628403,0.001898,66374.0,66373.0,0.99069918]
[1718593628644,0.001898,66374.0,66373.0,1.00469918]
[1718593629358,0.001898,66374.0,66373.0,0.80221139]
[1718593629564,0.001898,66374.0,66373.0,0.85261139]
[1718593630020,0.001898,66374.0,66373.0,0.18022139]
[1718593630242,0.00561016,66374.0,66373.0,0.18022139]
[1718593630778,0.00561016,66374.0,66373.0,0.33088439]
[1718593634102,0.45849484,66374.0,66373.0,0.18022139]
[1718593634317,0.45849484,66374.0,66373.0,0.16022139]
[1718593635131,0.75981684,66374.0,66373.0,0.16022139]
[1718593635376,0.45849484,66374.0,66373.0,0.16022139]
[1718593635558,0.30693216,66374.0,66373.0,0.16022139]
[1718593635896,0.45849484,66374.0,66373.0,0.16022139]
[1718593636032,0.45759316,66374.0,66373.0,0.14622139]
[1718593636445,0.45849484,66374.0,66373.0,0.13222139]
[1718593636651,0.45849484,66374.0,66373.0,0.16022139]
[1718593637730,1.06113884,66374.0,66373.0,0.028]
[1718593637917,1.20223884,66374.0,66373.0,0.028]
[1718593638964,1.20223884,66374.0,66373.0,0.014]
[1718593639184,0.14761184,66374.0,66368.0,0.01771661]
[1718593639390,0.14761184,66374.0,66373.0,0.022]
[1718593639589,0.59959484,66374.0,66373.0,0.022]
[1718593639727,0.59959484,66374.0,66373.0,0.008]
[1718593640151,0.00561016,66374.0,66373.0,0.016]
[1718593640375,0.00651184,66374.0,66373.0,0.008]
[1718593640700,0.15614748,66374.0,66373.0,0.008]
[1718593641110,0.15704916,66374.0,66373.0,0.02887117]
[1718593641341,0.00548648,66374.0,66373.0,0.02887117]
[1718593641596,0.15614748,66374.0,66373.0,0.02887117]
[1718593641768,0.00548648,66374.0,66373.0,0.02887117]
[1718593642219,0.00638816,66374.0,66373.0,0.02887117]
[1718593642353,0.15704916,66374.0,66373.0,0.02887117]
[1718593643191,0.15704916,66374.0,66373.0,0.03687117]
[1718593643419,0.15614748,66374.0,66373.0,0.03687117]
[1718593643900,0.00638816,66374.0,66373.0,0.016]
[1718593644393,0.00548648,66374.0,66373.0,0.016]
[1718593644617,0.00638816,66374.0,66373.0,0.016]
[1718593645293,0.00548648,66374.0,66373.0,0.92140479]
[1718593645535,0.00548648,66374.0,66373.0,1.23514325]
[1718593645774,0.001898,66374.0,66373.0,1.53647025]
[1718593646010,0.001898,66374.0,66373.0,1.68917025]
[1718593646466,0.001898,66374.0,66373.0,1.75710424]
[1718593647158,0.001898,66374.0,66373.0,1.74910424]
[1718593647365,0.001898,66374.0,66373.0,1.65377025]
[1718593648243,0.001898,66374.0,66373.0,1.64577025]
[1718593648662,0.001898,66374.0,66373.0,1.67377025]
[1718593649260,0.001898,66374.0,66373.0,1.71827617]
[1718593649978,0.001898,66374.0,66373.0,1.71826111]
[1718593650913,0.001898,66374.0,66373.0,1.67333633]
[1718593652866,0.001898,66374.0,66373.0,1.55297821]
[1718593653804,0.001898,66374.0,66373.0,1.55316741]
[1718593654238,0.001898,66374.0,66373.0,1.62055458]
[1718593655139,0.001898,66374.0,66373.0,1.30922758]
[1718593655373,0.001898,66374.0,66373.0,1.30932205]
[1718593655604,0.001898,66374.0,66373.0,1.31932205]
[1718593656308,0.001898,66374.0,66373.0,1.25184041]
[1718593657216,0.001898,66374.0,66373.0,1.4039282]
[1718593657531,0.001898,66374.0,66373.0,1.34184047]
[1718593657753,0.001898,66374.0,66373.0,1.33184047]
[1718593657981,0.001898,66374.0,66373.0,1.24184041]
[1718593658220,0.001898,66374.0,66373.0,1.33184047]
[1718593659994,0.001898,66374.0,66373.0,0.57894233]
[1718593660431,0.00549169,66374.0,66373.0,1.03093233]
[1718593660679,0.001898,66374.0,66373.0,1.33225933]
[1718593660895,0.001898,66374.0,66373.0,0.41324233]
[1718593661342,0.001898,66374.0,66373.0,0.32324227]
[1718593661567,0.001898,66374.0,66373.0,0.32325045]
[1718593661803,0.00549063,66374.0,66373.0,0.39080831]
[1718593662037,0.001898,66374.0,66373.0,0.48766737]
[1718593662268,0.00549063,66374.0,66373.0,0.48766737]
[1718593662480,0.001898,66374.0,66373.0,0.93965737]
[1718593662693,0.00549063,66374.0,66373.0,0.93965737]
[1718593662877,0.001898,66374.0,66373.0,0.93965737]
[1718593663281,0.001898,66374.0,66373.0,0.87209951]
[1718593663618,0.001898,66374.0,66373.0,0.57077251]
[1718593665178,0.001898,66374.0,66373.0,0.57077341]
[1718593665385,0.001898,66374.0,66373.0,0.63836324]
[1718593665614,0.001898,66374.0,66373.0,0.57077341]
[1718593668313,0.001898,66374.0,66373.0,0.57077307]
[1718593668724,0.001898,66374.0,66373.0,0.44574678]
[1718593668922,0.001898,66374.0,66373.0,0.57077306]
[1718593670426,0.001898,66374.0,66373.0,0.63328653]
[1718593670651,0.001898,66374.0,66373.0,0.93461353]
[1718593671286,0.001898,66374.0,66373.0,1.0247519]
[1718593671516,0.001898,66374.0,66373.0,0.38576447]
[1718593671985,0.005448,66374.0,66373.0,0.26073797]
[1718593672265,0.005448,66374.0,66373.0,0.38576501]
[1718593674044,0.005448,66374.0,66373.0,0.38576515]
[1718593674263,0.005448,66374.0,66373.0,0.53642815]
[1718593674924,0.005448,66374.0,66373.0,0.38576515]
[1718593675152,0.005448,66374.0,66373.0,0.38576514]
[1718593675397,0.00634968,66374.0,66373.0,0.38576514]
[1718593676610,0.00634968,66374.0,66373.0,0.45338371]
[1718593676830,0.06854968,66374.0,66373.0,0.45338371]
[1718593677307,0.21921068,66374.0,66373.0,0.38576514]
[1718593677769,0.005448,66374.0,66373.0,0.38576514]
[1718593682781,0.156109,66374.0,66373.0,0.38576514]
[1718593682954,0.15701068,66374.0,66373.0,0.38576514]
[1718593683363,0.15701068,66374.0,66373.0,0.38576709]
[1718593683569,0.15701068,66374.0,66373.0,0.26073991]
[1718593683793,0.156109,66374.0,66373.0,0.38577029]
[1718593684211,0.156109,66374.0,66373.0,0.45338886]
[1718593685655,0.15701068,66374.0,66373.0,0.45338886]
[1718593686578,0.156109,66374.0,66373.0,0.45338886]
[1718593687166,0.156109,66374.0,66373.0,0.38577029]
[1718593692458,0.15701068,66374.0,66373.0,0.38577029]
[1718593692856,0.15701068,66374.0,66373.0,0.38670529]
[1718593693297,0.15701068,66374.0,66373.0,0.46576495]
[1718593695255,0.15701068,66374.0,66373.0,0.38670629]
[1718593696495,0.15701068,66374.0,66373.0,0.19915972]
[1718593696708,0.15701068,66374.0,66373.0,0.38670707]
[1718593697694,0.15701068,66374.0,66373.0,0.32419129]
[1718593697915,0.15701068,66374.0,66373.0,0.38670707]
[1718593698685,0.15701068,66374.0,66373.0,0.32419129]
[1718593698818,0.15701068,66374.0,66373.0,0.38670708]
[1718593699223,0.45833268,66374.0,66373.0,0.47698163]
[1718593699650,0.457431,66374.0,66373.0,0.47698163]
[1718593701276,0.45833268,66374.0,66373.0,0.47698163]
[1718593703879,0.45833268,66374.0,66373.0,0.28943427]
[1718593704298,0.45833268,66374.0,66373.0,0.19915972]
[1718593705408,0.45833268,66374.0,66373.0,0.47702156]
[1718593706550,0.45833268,66374.0,66373.0,0.38670736]
[1718593706754,0.45833268,66374.0,66373.0,0.47703933]
[1718593707577,0.75965468,66374.0,66373.0,0.47703933]
[1718593707824,1.12737668,66374.0,66373.0,0.30237928]
[1718593708031,1.20627668,66374.0,66373.0,0.19933609]
[1718593708239,1.20627668,66374.0,66373.0,0.15415596]
[1718593708450,1.21627668,66374.0,66373.0,0.0291242]
[1718593708651,1.20627668,66374.0,66373.0,0.0291242]
[1718593709265,1.20627668,66374.0,66373.0,0.0151242]
[1718593709474,1.20627668,66374.0,66373.0,0.0011242]
[1718593709678,1.21627668,66374.0,66373.0,0.0011242]
[1718593709886,1.20627668,66374.0,66373.0,0.0181242]
[1718593710953,1.20627668,66374.0,66373.0,0.0091242]
[1718593711423,1.20627668,66374.0,66373.0,0.0171242]
[1718593712952,1.20627668,66374.0,66373.0,0.0251487]
[1718593713555,1.21627668,66374.0,66373.0,0.0251487]
[1718593713760,1.21627668,66374.0,66373.0,0.0171242]
[1718593716137,1.21627668,66374.0,66373.0,0.01630252]
[1718593716591,1.20627668,66374.0,66373.0,0.01630252]
[1718593721566,0.758753,66374.0,66373.0,0.01630252]
[1718593721724,0.75965468,66374.0,66373.0,0.01630252]
[1718593722121,0.75965468,66374.0,66373.0,0.04558914]
[1718593722509,0.005448,66374.0,66373.0,0.79546693]
[1718593722730,0.005448,66374.0,66373.0,1.27792775]
[1718593722731,0.001898,66374.0,66373.0,1.27792775]
[1718593722955,0.001898,66374.0,66373.0,1.34562156]
[1718593723154,0.001898,66374.0,66373.0,1.57925475]
[1718593723537,0.001898,66374.0,66373.0,1.60225475]
[1718593723750,0.001898,66374.0,66373.0,1.41375077]
[1718593723962,0.001898,66374.0,66373.0,1.30092775]
[1718593724167,0.001898,66374.0,66373.0,1.60225475]
[1718593724525,0.001898,66374.0,66373.0,1.30092775]
[1718593724904,0.001898,66374.0,66373.0,1.59425475]
[1718593725362,0.001898,66374.0,66373.0,1.29292775]
[1718593725566,0.001898,66374.0,66373.0,1.28492775]
[1718593725765,0.001898,66374.0,66373.0,1.65025475]
[1718593725967,0.001898,66374.0,66373.0,1.76425475]
[1718593726165,0.001898,66374.0,66373.0,1.86425475]
[1718593726370,0.00085,66386.0,66385.0,0.76318]
[1718593726595,0.00085,66386.0,66385.0,1.25375961]
[1718593726793,0.00085,66386.0,66385.0,1.66729368]
[1718593727198,0.00085,66386.0,66385.0,1.63472209]
[1718593727403,0.00085,66386.0,66385.0,1.34345009]
[1718593727825,0.00085,66386.0,66385.0,1.25339289]
[1718593728403,0.00085,66386.0,66385.0,1.32518021]
[1718593729010,0.00085,66386.0,66385.0,1.33918021]
[1718593729222,0.00085,66386.0,66385.0,1.27165481]
[1718593729474,0.00085,66386.0,66385.0,1.28165481]
[1718593729849,0.00085,66386.0,66385.0,1.31666261]
[1718593730222,0.00085,66386.0,66385.0,1.22525481]
[1718593730443,0.00085,66386.0,66385.0,1.32066261]
[1718593730643,0.00085,66386.0,66385.0,1.33066261]
[1718593731295,0.00085,66386.0,66385.0,1.28565481]
[1718593733040,0.00085,66386.0,66385.0,1.04520107]
[1718593734904,0.00085,66386.0,66385.0,0.98330107]
[1718593735321,0.00085,66386.0,66385.0,0.33035707]
[1718593735550,0.00085,66386.0,66385.0,0.63162907]
[1718593735759,0.00085,66386.0,66385.0,0.18008779]
[1718593735960,0.00420157,66386.0,66385.0,0.33072379]
[1718593736168,0.00420157,66386.0,66385.0,0.63199579]
[1718593736380,0.00085,66386.0,66385.0,0.18008779]
[1718593736585,0.00420125,66386.0,66385.0,0.33072379]
[1718593736988,0.00420125,66386.0,66385.0,0.18008779]
[1718593737198,0.00420125,66386.0,66385.0,0.33072379]
[1718593737414,0.00267403,66386.0,66385.0,0.33072379]
[1718593737833,0.00090168,66387.0,66386.0,0.150634]
[1718593738041,0.00090168,66387.0,66386.0,0.30272179]
[1718593738237,0.00085,66391.0,66386.0,0.39285617]
[1718593738435,0.00085,66391.0,66390.0,0.150625]
[1718593738843,0.0661,66390.0,66386.0,0.40108817]
[1718593739055,0.0661,66390.0,66386.0,0.30271979]
[1718593739255,0.0661,66390.0,66386.0,0.3022868]
[1718593739888,0.00090168,66389.0,66386.0,0.3022868]
[1718593740346,0.00090168,66389.0,66387.0,0.150631]
[1718593740718,0.0661,66390.0,66388.0,0.150628]
[1718593740930,0.0661,66390.0,66388.0,0.1877215]
[1718593741774,0.0661,66390.0,66389.0,0.150627]
[1718593743166,0.0661,66390.0,66389.0,0.451881]
[1718593743370,0.0661,66390.0,66389.0,0.150627]
[1718593743784,0.06700168,66390.0,66389.0,0.011]
[1718593743993,0.06700168,66390.0,66389.0,0.023]
[1718593744408,0.06700168,66390.0,66389.0,0.173627]
[1718593745069,0.07033436,66390.0,66389.0,0.173627]
[1718593745489,0.07033436,66390.0,66389.0,0.023]
[1718593748444,0.90435936,66390.0,66389.0,0.023]
[1718593748799,1.13950936,66390.0,66389.0,0.023]
[1718593748998,1.20110936,66390.0,66389.0,0.023]
[1718593749221,1.21110936,66390.0,66389.0,0.023]
[1718593749420,1.20110936,66390.0,66389.0,0.023]
[1718593749616,0.89985936,66390.0,66389.0,0.023]
[1718593750011,0.29735936,66390.0,66389.0,0.023]
[1718593750226,0.59860936,66390.0,66389.0,0.023]
[1718593755159,0.00423436,66390.0,66389.0,0.023]
[1718593755738,0.15485936,66390.0,66389.0,0.023]
[1718593755947,0.15485936,66390.0,66389.0,0.02261648]
[1718593757000,0.45610936,66390.0,66389.0,0.02261648]
[1718593757218,0.53575936,66390.0,66389.0,0.02261648]
[1718593759937,0.23450936,66390.0,66389.0,0.02261648]
[1718593761204,0.23450936,66390.0,66389.0,0.02221405]
[1718593761413,0.08388436,66390.0,66389.0,0.04145811]
[1718593761620,0.00508436,66390.0,66389.0,0.04145811]
[1718593762039,0.00418268,66390.0,66389.0,0.04145811]
[1718593762247,0.00418268,66390.0,66389.0,0.19208511]
[1718593762661,0.00418268,66390.0,66389.0,0.04145811]
[1718593762888,0.00085,66390.0,66389.0,0.1664645]
[1718593763087,0.00395467,66390.0,66389.0,0.6833455]
[1718593763656,0.00085,66390.0,66389.0,1.13668729]
[1718593764451,0.00085,66390.0,66389.0,0.83543329]
[1718593765754,0.00085,66390.0,66389.0,1.13668729]
[1718593765954,0.0006687,66390.0,66389.0,1.13668729]
[1718593766787,0.0006687,66390.0,66389.0,1.0116809]
[1718593766957,0.0006687,66390.0,66389.0,0.7104269]
[1718593768513,0.0006687,66390.0,66389.0,1.0116809]
[1718593770138,0.0006687,66390.0,66389.0,1.13668239]
[1718593770561,0.0006687,66390.0,66389.0,1.18708239]
[1718593772814,0.0006687,66390.0,66389.0,1.26808239]
[1718593773894,0.0006687,66390.0,66389.0,1.57933639]
[1718593775013,0.0006687,66390.0,66389.0,1.66950481]
[1718593775216,0.0006687,66390.0,66389.0,1.57933639]
[1718593775863,0.0006687,66390.0,66389.0,1.57909604]
[1718593776702,0.0006687,66390.0,66389.0,1.57931837]
[1718593778453,0.0006687,66390.0,66389.0,1.66944921]
[1718593778696,0.0006687,66390.0,66389.0,1.57931837]
[1718593778903,0.0006687,66390.0,66389.0,1.65944892]
[1718593779276,0.0006687,66390.0,66389.0,1.66944892]
[1718593779495,0.0006687,66390.0,66389.0,1.65944892]
[1718593779702,0.0006687,66390.0,66389.0,1.66944892]
[1718593780116,0.0006687,66390.0,66389.0,1.57931837]
[1718593780752,0.0006687,66390.0,66389.0,1.66944892]
[1718593781162,0.0006687,66390.0,66389.0,1.57931837]
[1718593782751,0.0006687,66390.0,66389.0,1.64181605]
[1718593783839,0.0006687,66390.0,66389.0,1.63181605]
[1718593784040,0.0006687,66390.0,66389.0,1.72194051]
[1718593784420,0.0006687,66390.0,66389.0,1.63181605]
[1718593786691,0.0006687,66390.0,66389.0,1.64181605]
[1718593788331,0.0006687,66390.0,66389.0,1.73194051]
[1718593788749,0.0006687,66390.0,66389.0,1.64181605]
[1718593788976,0.0006687,66390.0,66389.0,1.63181605]
[1718593789346,0.0006687,66390.0,66389.0,1.33056205]
[1718593789498,0.0006687,66390.0,66389.0,1.18456205]
[1718593790113,0.0006687,66390.0,66389.0,1.19456205]
[1718593790516,0.0006687,66390.0,66389.0,1.18549705]
[1718593790913,0.0006687,66390.0,66389.0,1.25307442]
[1718593791733,0.0006687,66390.0,66389.0,1.25308542]
[1718593793308,0.0006687,66390.0,66389.0,1.26308542]
[1718593793520,0.0006687,66390.0,66389.0,1.19550805]
[1718593793733,0.0006687,66390.0,66389.0,1.26308305]
[1718593794080,0.0006687,66390.0,66389.0,1.25308305]
[1718593794780,0.0006687,66390.0,66389.0,1.26308305]
[1718593795194,0.0006687,66390.0,66389.0,1.19550805]
[1718593795398,0.0006687,66390.0,66389.0,1.21268353]
[1718593795595,0.0006687,66390.0,66389.0,1.20268353]
[1718593795809,0.0006687,66390.0,66389.0,1.25308353]
[1718593796228,0.0006687,66390.0,66389.0,1.20268353]
[1718593796425,0.0006687,66390.0,66389.0,1.25308353]
[1718593797086,0.0006687,66390.0,66389.0,1.25308583]
[1718593797720,0.0006687,66390.0,66389.0,1.26308583]
[1718593798277,0.0006687,66390.0,66389.0,1.25308583]
[1718593800283,0.0006687,66390.0,66389.0,1.18550805]
[1718593800486,0.0006687,66390.0,66389.0,1.2530705]
[1718593802167,0.0006687,66390.0,66389.0,1.25307282]
[1718593803436,0.0006687,66390.0,66389.0,1.18551037]
[1718593803837,0.0006687,66390.0,66389.0,1.25309541]
[1718593804012,0.00157038,66390.0,66389.0,1.25309541]
[1718593804223,0.0006687,66390.0,66389.0,1.13511037]
[1718593804479,0.0006687,66390.0,66389.0,1.11586631]
[1718593804706,0.0006687,66390.0,66389.0,0.36273131]
[1718593804707,0.26777038,66390.0,66389.0,0.36273131]
[1718593804913,0.14727038,66390.0,66389.0,0.36273131]
[1718593805119,0.15037557,66390.0,66389.0,0.36273131]
[1718593805829,0.15037557,66390.0,66389.0,0.40781317]
[1718593806260,0.00377389,66390.0,66389.0,0.79198504]
[1718593806470,0.00377389,66390.0,66389.0,1.08338804]
[1718593806672,0.0006687,66390.0,66389.0,1.08338804]
[1718593806828,0.0006687,66390.0,66389.0,0.9774108]
[1718593807047,0.0006687,66390.0,66389.0,1.04502666]
[1718593807254,0.0006687,66390.0,66389.0,1.04502865]
[1718593807680,0.0006687,66390.0,66389.0,1.20703165]
[1718593808429,0.0006687,66390.0,66389.0,0.96602865]
[1718593808891,0.0006687,66390.0,66389.0,1.20703165]
[1718593809303,0.0006687,66390.0,66389.0,1.14941579]
[1718593809741,0.0006687,66390.0,66389.0,0.90841279]
[1718593810175,0.0006687,66390.0,66389.0,0.89841279]
[1718593810379,0.0006687,66390.0,66389.0,1.13941579]
[1718593810817,0.0006687,66390.0,66389.0,0.89841279]
[1718593811417,0.0006687,66390.0,66389.0,0.96606469]
[1718593811799,0.0006687,66390.0,66389.0,0.96606478]
[1718593812253,0.0006687,66390.0,66389.0,0.48323892]
[1718593812444,0.0006687,66390.0,66389.0,0.72424192]
[1718593812914,0.00157038,66390.0,66389.0,0.72424192]
[1718593813227,0.0006687,66390.0,66389.0,0.72424192]
[1718593813440,0.0006687,66390.0,66389.0,0.79190547]
[1718593814026,0.0006687,66390.0,66389.0,0.72424192]
[1718593814230,0.0006687,66390.0,66389.0,0.87632971]
[1718593815312,0.0006687,66390.0,66389.0,0.94398338]
[1718593816394,0.0006687,66390.0,66389.0,0.94398359]
[1718593817176,0.0006687,66390.0,66389.0,0.87632992]
[1718593817737,0.0006687,66390.0,66389.0,0.94396637]
[1718593818187,0.0006687,66390.0,66389.0,0.87632992]
[1718593818347,0.0006687,66390.0,66389.0,0.63532692]
[1718593818549,0.0006687,66390.0,66389.0,0.70296792]
[1718593818754,0.0006687,66390.0,66389.0,0.55088013]
[1718593819021,0.0006687,66390.0,66389.0,0.55088131]
[1718593819768,0.0006687,66390.0,66389.0,0.79188431]
[1718593820562,0.0006687,66390.0,66389.0,0.72424213]
[1718593820960,0.0006687,66390.0,66389.0,0.79187886]
[1718593821814,0.0006687,66390.0,66389.0,0.79186449]
[1718593824065,0.36307038,66390.0,66389.0,0.43036049]
[1718593824499,0.0006687,66390.0,66389.0,0.43035878]
[1718593824704,0.12554313,66390.0,66389.0,0.43035878]
[1718593824908,0.00157038,66390.0,66389.0,0.43035878]
[1718593825135,0.00504313,66390.0,66389.0,0.43035878]
[1718593825555,0.00414145,66390.0,66389.0,0.43035878]
[1718593826375,0.00504313,66390.0,66389.0,0.43035878]
[1718593827410,0.00414145,66390.0,66389.0,0.43035878]
[1718593827614,0.00414145,66390.0,66389.0,1.15328747]
[1718593827845,0.00414145,66390.0,66389.0,0.91228447]
[1718593828045,0.0006687,66390.0,66389.0,1.29778747]
[1718593828221,0.0006687,66390.0,66389.0,1.16328747]
[1718593828429,0.0006687,66390.0,66389.0,1.50097114]
[1718593829034,0.0006687,66390.0,66389.0,1.59470509]
[1718593829240,0.0006687,66390.0,66389.0,1.50052516]
[1718593830059,0.0006687,66390.0,66389.0,1.84152816]
[1718593830359,0.0006687,66390.0,66389.0,1.98570478]
[1718593830780,0.0006687,66390.0,66389.0,2.14440206]
[1718593831501,0.0006687,66390.0,66389.0,1.98570478]
[1718593831940,0.0006687,66390.0,66389.0,1.96393671]
[1718593832365,0.0006687,66390.0,66389.0,1.86390363]
[1718593832580,0.0006687,66390.0,66389.0,1.87790363]
[1718593832822,0.0006687,66390.0,66389.0,1.89190363]
[1718593833461,0.0006687,66390.0,66389.0,1.8919039]
[1718593833911,0.0006687,66390.0,66389.0,1.6509009]
[1718593834139,0.0006687,66390.0,66389.0,1.7013009]
[1718593834341,0.0006687,66390.0,66389.0,1.60712428]
[1718593835412,0.0006687,66390.0,66389.0,1.55672428]
[1718593835585,0.0006687,66390.0,66389.0,1.60712428]
[1718593839705,0.0006687,66390.0,66389.0,1.60668958]
[1718593840150,0.0006687,66390.0,66389.0,1.71922976]
[1718593840582,0.0006687,66390.0,66389.0,1.81922976]
[1718593840753,0.0006687,66390.0,66389.0,1.70668958]
[1718593841167,0.0006687,66390.0,66389.0,1.60668958]
[1718593841365,0.0006687,66390.0,66389.0,1.70668958]
[1718593841581,0.0006687,66390.0,66389.0,1.73439578]
[1718593845404,0.00939401,66398.0,66397.0,0.998709]
[1718593845654,0.00939401,66398.0,66397.0,1.41166659]
[1718593846089,0.00939401,66398.0,66397.0,1.26636659]
[1718593846312,0.00939401,66398.0,66397.0,1.3563429]
[1718593846982,0.00939401,66398.0,66397.0,1.3463429]
[1718593847181,0.00939401,66398.0,66397.0,1.38462952]
[1718593847609,0.00939401,66398.0,66397.0,1.40362952]
[1718593848265,0.00939401,66398.0,66397.0,1.29565321]
[1718593848476,0.00939401,66398.0,66397.0,1.30865321]
[1718593848902,0.00939401,66398.0,66397.0,1.31865321]
[1718593849115,0.00939401,66398.0,66397.0,1.40862952]
[1718593849313,0.00939401,66398.0,66397.0,1.30865321]
[1718593849541,0.00939401,66398.0,66397.0,1.31865321]